bitfinex/quotes_SOLUSD_20220113
["timestamp","ask_amount","ask_price","bid_price","bid_amount"]
[1642079715346,2.584,154.8,154.66,2.584]
[1642079715547,35.8872,154.8,154.66,2.584]
[1642079715746,9.31,154.79,154.66,2.584]
[1642079715973,2.585,154.78,154.62,2.585]
[1642079716173,9.31,154.77,154.6,2.585]
[1642079716374,2.585,154.76,154.6,2.585]
[1642079716572,9.90783012,154.75,154.6,2.585]
[1642079716773,25.4137,154.74,154.6,2.835]
[1642079716972,98.6679,154.74,154.6,2.585]
[1642079717175,74.8685,154.73,154.61,9.7001]
[1642079717373,80.9805,154.73,154.61,9.7001]
[1642079717573,81.2305,154.73,154.61,9.7001]
[1642079718675,81.2305,154.73,154.6,12.2857]
[1642079718875,9.7009,154.69,154.6,2.585]
[1642079719175,15.4579,154.69,154.6,2.585]
[1642079719974,15.7179,154.69,154.6,2.585]
[1642079720174,15.7179,154.69,154.6,9.7006]
[1642079720575,15.9679,154.69,154.6,9.7006]
[1642079720876,15.9679,154.69,154.59,2.5861]
[1642079721079,15.9679,154.69,154.59,0.2501]
[1642079721275,15.9679,154.69,154.59,0.0001]
[1642079721476,21.9679,154.69,154.59,0.0001]
[1642079721877,9.702,154.67,154.59,0.0001]
[1642079723078,22.246,154.67,154.59,0.0001]
[1642079723275,2.586,154.66,154.59,0.0001]
[1642079723477,9.704,154.64,154.59,0.0001]
[1642079723880,26.2814,154.66,154.59,0.0001]
[1642079724075,29.9454,154.66,154.59,0.0001]
[1642079725377,32.5314,154.66,154.59,0.0001]
[1642079726282,32.7914,154.66,154.59,0.0001]
[1642079726677,26.7914,154.66,154.59,0.0001]
[1642079727077,32.7914,154.66,154.59,0.0001]
[1642079727978,2.586,154.7,154.59,1.19416344]
[1642079728180,2.586,154.7,154.6,74.48]
[1642079728377,2.586,154.7,154.6,11.896]
[1642079728577,2.586,154.7,154.61,23.57548889]
[1642079728777,74.7216,154.74,154.62,11.896]
[1642079728980,74.7216,154.74,154.62,13.34006344]
[1642079729177,74.7216,154.74,154.63,9.6984]
[1642079729378,74.7216,154.74,154.63,1.19406344]
[1642079729577,74.7216,154.74,154.62,12.146]
[1642079729578,74.7216,154.74,154.62,11.896]
[1642079729878,2.585,154.73,154.62,9.56]
[1642079730278,2.585,154.73,154.62,19.2596]
[1642079730478,3.069205,154.72,154.62,19.0096]
[1642079730880,3.069205,154.72,154.62,19.2596]
[1642079731082,2.845,154.73,154.62,19.2596]
[1642079731284,97.4256,154.74,154.62,20.45366344]
[1642079731485,97.4256,154.74,154.63,2.585]
[1642079731685,97.4256,154.74,154.63,2.835]
[1642079731882,97.4256,154.74,154.63,4.02906344]
[1642079732083,2.5862241,154.73,154.63,3.77906344]
[1642079732282,5.1712241,154.73,154.6,13.08906344]
[1642079732484,11.4312241,154.73,154.6,19.33906344]
[1642079732883,11.6812241,154.73,154.61,9.6996]
[1642079733085,5.6812241,154.73,154.61,17.14366344]
[1642079733283,5.4212241,154.73,154.61,17.14366344]
[1642079733482,2.835,154.73,154.62,1.19406344]
[1642079733882,2.835,154.73,154.65,9.6976]
[1642079734283,2.835,154.73,154.62,1.44406344]
[1642079734482,5.53515646,154.73,154.62,1.19406344]
[1642079734714,5.53515646,154.73,154.6,1.19406344]
[1642079734884,11.79515646,154.73,154.6,3.78006344]
[1642079735085,11.79515646,154.73,154.62,9.6993]
[1642079735585,3.095,154.73,154.62,9.6993]
[1642079736587,3.095,154.73,154.62,27.27355992]
[1642079736987,3.095,154.73,154.62,9.6993]
[1642079738086,2.835,154.73,154.62,27.03108998]
[1642079738487,8.835,154.73,154.62,9.6993]
[1642079738687,2.835,154.73,154.62,9.6993]
[1642079738987,74.005,154.73,154.62,9.6993]
[1642079739190,8.835,154.73,154.62,9.6993]
[1642079739387,8.845,154.73,154.62,9.6993]
[1642079739987,2.845,154.73,154.62,9.6993]
[1642079740187,2.585,154.73,154.62,9.6993]
[1642079740887,2.835,154.73,154.62,9.6993]
[1642079741587,3.095,154.73,154.62,9.6993]
[1642079741789,2.835,154.73,154.62,9.6993]
[1642079742387,8.835,154.73,154.62,9.9493]
[1642079744090,6.25,154.73,154.62,9.9493]
[1642079744296,6.25,154.73,154.62,19.2593]
[1642079744492,6.25,154.73,154.62,20.45336344]
[1642079745290,0.25,154.73,154.62,20.45336344]
[1642079745491,6.0,154.73,154.62,20.45336344]
[1642079745690,6.25,154.73,154.62,20.45336344]
[1642079746090,6.0,154.73,154.63,2.586]
[1642079746293,1.5374443,154.74,154.65,18.50256349]
[1642079746492,1.5374443,154.74,154.68,9.6951]
[1642079747492,1.5374443,154.74,154.66,9.31]
[1642079747893,2.585,154.73,154.62,78.90579018]
[1642079748097,2.585,154.73,154.62,1.19109018]
[1642079748296,9.095,154.73,154.61,11.895]
[1642079748492,9.095,154.73,154.61,2.585]
[1642079748694,9.79225225,154.72,154.6,2.586]
[1642079748895,2.586,154.71,154.56,11.896]
[1642079749093,23.9405,154.7,154.56,11.896]
[1642079749294,2.586,154.69,154.55,2.586]
[1642079749499,12.5376,154.69,154.54,84.0662]
[1642079749740,77.7076,154.69,154.54,84.0662]
[1642079749943,12.5376,154.69,154.54,84.0662]
[1642079750141,23.2736,154.68,154.54,84.0662]
[1642079750540,23.5236,154.68,154.54,84.0662]
[1642079750840,23.5236,154.68,154.55,23.43747504]
[1642079751039,23.5236,154.68,154.56,2.586]
[1642079751738,23.5236,154.68,154.59,9.7013]
[1642079751939,29.5236,154.68,154.59,9.7013]
[1642079752244,94.6936,154.68,154.59,0.0001]
[1642079752740,29.5236,154.68,154.59,0.0001]
[1642079752941,39.2257,154.68,154.59,0.0001]
[1642079753140,39.4857,154.68,154.59,0.0001]
[1642079753343,2.586,154.67,154.59,0.0001]
[1642079753543,8.836,154.67,154.59,0.0001]
[1642079754544,6.25,154.67,154.59,0.0001]
[1642079754748,15.9528,154.67,154.59,0.0001]
[1642079756246,6.25,154.67,154.59,0.0001]
[1642079756446,6.0,154.67,154.59,0.0001]
[1642079757147,71.17,154.67,154.59,0.0001]
[1642079757349,74.8727,154.67,154.59,0.0001]
[1642079757548,80.8727,154.67,154.59,0.0001]
[1642079757748,81.1227,154.67,154.59,0.0001]
[1642079757947,2.586,154.66,154.59,0.0001]
[1642079758348,8.836,154.66,154.59,0.0001]
[1642079759151,9.704,154.65,154.59,0.0001]
[1642079759350,74.48,154.64,154.59,0.0001]
[1642079759551,77.316,154.64,154.59,0.0001]
[1642079759854,183.9976,154.64,154.59,0.0001]
[1642079760053,184.2576,154.64,154.59,0.0001]
[1642079760451,9.7069,154.62,154.59,0.0001]
[1642079760653,65.17,154.61,154.59,0.0001]
[1642079760852,166.067,154.6,154.59,0.0001]
[1642079761075,172.317,154.6,154.59,0.0001]
[1642079761878,182.0248,154.6,154.59,0.0001]
[1642079762776,89.0,154.59,154.46,2.587]
[1642079762976,74.8813,154.53,154.43,9.7116]
[1642079763375,81.1313,154.53,154.43,9.7116]
[1642079764377,81.3913,154.53,154.43,9.7116]
[1642079764777,16.2213,154.53,154.43,9.7116]
[1642079765080,81.3913,154.53,154.43,9.7116]
[1642079765278,81.3913,154.53,154.4,2.588]
[1642079765478,9.7131,154.49,154.4,0.25]
[1642079765678,9.9631,154.49,154.39,11.899]
[1642079765879,15.9631,154.49,154.39,9.31]
[1642079766180,15.9631,154.49,154.39,26.55867928]
[1642079766678,15.9631,154.49,154.4,9.7135]
[1642079766880,81.1331,154.49,154.38,2.59]
[1642079767079,2.59,154.48,154.38,2.59]
[1642079767278,9.717,154.43,154.38,2.59]
[1642079767480,9.967,154.43,154.38,0.0001]
[1642079767682,15.967,154.43,154.38,0.0001]
[1642079767981,2.59,154.42,154.38,0.0001]
[1642079768380,2.84,154.42,154.38,0.0001]
[1642079768784,9.7185,154.4,154.38,0.0001]
[1642079768981,9.9685,154.4,154.38,0.0001]
[1642079769581,15.9685,154.4,154.38,0.0001]
[1642079770382,15.9685,154.4,154.38,0.0201]
[1642079770582,15.9685,154.4,154.38,0.0401]
[1642079771484,16.2285,154.4,154.38,0.0401]
[1642079773485,18.8185,154.4,154.27,22.8766]
[1642079773886,18.8185,154.4,154.27,23.1266]
[1642079774286,18.8185,154.4,154.27,22.8766]
[1642079775086,18.8185,154.4,154.27,25.4676]
[1642079775290,18.8185,154.4,154.28,9.7205]
[1642079776689,9.31,154.39,154.27,12.3126]
[1642079776891,9.7222,154.34,154.25,2.591]
[1642079777090,9.9722,154.34,154.24,1.18808402]
[1642079777290,15.9722,154.34,154.24,1.18808402]
[1642079777892,15.9722,154.34,154.24,18.61152804]
[1642079778090,81.1422,154.34,154.23,2.592]
[1642079778290,83.7342,154.34,154.21,2.592]
[1642079778489,163.7016,154.34,154.19,9.31]
[1642079778689,9.7258,154.28,154.19,9.31]
[1642079778888,9.7258,154.28,154.19,10.49213231]
[1642079779090,9.7258,154.28,154.2,20.97547058]
[1642079779091,15.7258,154.28,154.2,20.97547058]
[1642079779492,15.7258,154.28,154.17,15.566102]
[1642079779692,2.593,154.27,154.17,9.31]
[1642079779891,9.7287,154.23,154.15,3.664102]
[1642079780096,14.9287,154.23,154.15,3.664102]
[1642079780292,15.1787,154.23,154.15,3.664102]
[1642079780495,21.1787,154.23,154.15,25.24146673]
[1642079780692,21.4387,154.23,154.15,25.24146673]
[1642079780991,21.4387,154.23,154.15,21.57736473]
[1642079781392,21.4387,154.23,154.12,2.594]
[1642079781792,16.2387,154.23,154.12,2.594]
[1642079782196,6.26,154.23,154.13,9.7303]
[1642079782493,0.08,154.27,154.14,9.31]
[1642079782693,0.08,154.27,154.14,103.21]
[1642079782896,0.08,154.27,154.14,120.76711947]
[1642079783099,0.08,154.27,154.15,13.64011947]
[1642079783294,0.08,154.27,154.2,9.7252]
[1642079783496,0.08,154.27,154.21,20.38190548]
[1642079783696,11.8971,154.31,154.21,17.78890548]
[1642079783894,9.31,154.3,154.21,1.18213231]
[1642079784094,2.593,154.29,154.12,2.593]
[1642079784296,33.5631,154.28,154.11,1.18213231]
[1642079784496,2.594,154.27,154.12,2.594]
[1642079784694,9.31,154.26,154.12,2.594]
[1642079784895,9.7283,154.24,154.16,9.7286]
[1642079785094,9.9783,154.24,154.16,9.7286]
[1642079785296,2.594,154.25,154.16,9.7286]
[1642079785297,2.594,154.25,154.16,9.9786]
[1642079785496,26.8461,154.28,154.16,11.16073231]
[1642079785701,24.2531,154.28,154.16,11.16073231]
[1642079785897,24.5031,154.28,154.16,11.16073231]
[1642079786097,27.0961,154.28,154.16,19.75373231]
[1642079786596,24.5031,154.28,154.16,13.75373231]
[1642079787098,24.7631,154.28,154.16,13.75373231]
[1642079787299,34.489,154.28,154.16,13.75373231]
[1642079787900,40.489,154.28,154.16,13.75373231]
[1642079788102,49.799,154.28,154.16,12.3216]
[1642079788404,9.7288,154.24,154.16,2.593]
[1642079788600,15.7288,154.24,154.16,2.593]
[1642079789002,15.9788,154.24,154.16,2.593]
[1642079789402,15.9788,154.24,154.14,22.7025]
[1642079789602,15.9788,154.24,154.13,23.78149516]
[1642079789804,15.9788,154.24,154.13,22.59936285]
[1642079790002,15.9788,154.24,154.15,1.18213231]
[1642079790203,15.9788,154.24,154.16,9.7286]
[1642079790403,6.0,154.24,154.16,9.7286]
[1642079790603,15.7277,154.25,154.16,9.7286]
[1642079790802,15.9777,154.25,154.16,9.7286]
[1642079791007,15.9777,154.25,154.16,9.9786]
[1642079791404,15.9777,154.25,154.15,10.91133231]
[1642079791602,2.594,154.24,154.13,22.59936285]
[1642079791805,9.7301,154.22,154.13,22.59936285]
[1642079792105,9.9801,154.22,154.13,22.59936285]
[1642079792305,15.9801,154.22,154.12,1.18213231]
[1642079792509,15.7301,154.22,154.12,1.18213231]
[1642079792708,6.0,154.22,154.14,9.7297]
[1642079793006,30.4443,154.24,154.14,9.9797]
[1642079793209,40.4227,154.24,154.14,9.9797]
[1642079793407,40.4227,154.24,154.14,28.57107003]
[1642079793910,40.4227,154.24,154.14,28.32107003]
[1642079795236,40.4227,154.24,154.14,29.50320234]
[1642079795443,6.25,154.24,154.14,29.50320234]
[1642079795644,2.594,154.26,154.14,29.50320234]
[1642079795846,106.6142,154.27,154.15,2.594]
[1642079796047,103.3042,154.27,154.18,9.7268]
[1642079796249,102.8042,154.27,154.18,9.7268]
[1642079796447,2.593,154.28,154.18,9.9768]
[1642079796645,27.3353,154.31,154.2,19.4437978]
[1642079797046,27.3353,154.31,154.2,29.4196978]
[1642079797249,27.3353,154.31,154.2,19.6937978]
[1642079797446,27.3353,154.31,154.19,2.593]
[1642079797647,9.7276,154.26,154.19,2.843]
[1642079797847,2.593,154.29,154.19,2.843]
[1642079798048,2.843,154.29,154.19,2.843]
[1642079798249,8.843,154.29,154.19,2.843]
[1642079798549,8.843,154.29,154.19,31.07492687]
[1642079798751,6.25,154.29,154.19,31.07492687]
[1642079798948,0.25,154.29,154.19,31.07492687]
[1642079799149,15.9756,154.29,154.19,31.07492687]
[1642079799350,15.7256,154.29,154.19,28.48192687]
[1642079799650,6.0,154.29,154.19,29.66405918]
[1642079799851,9.31,154.32,154.19,32.25705918]
[1642079800050,2.593,154.31,154.19,32.91390573]
[1642079800250,2.593,154.31,154.19,30.07090573]
[1642079800552,9.7256,154.29,154.19,30.07090573]
[1642079801254,8.593,154.31,154.19,31.25303804]
[1642079801451,2.593,154.34,154.2,11.903]
[1642079801651,101.8324,154.35,154.26,9.722]
[1642079802055,6.0,154.35,154.26,9.972]
[1642079802259,2.592,154.36,154.26,11.15413231]
[1642079802452,2.592,154.36,154.28,32.3934]
[1642079802653,2.592,154.36,154.31,9.7181]
[1642079803053,2.592,154.36,154.32,23.32183125]
[1642079803254,2.591,154.45,154.32,23.32183125]
[1642079803454,2.591,154.45,154.32,23.57183125]
[1642079803653,2.591,154.45,154.34,9.7165]
[1642079803856,74.9852,154.46,154.34,9.7165]
[1642079804057,2.59,154.48,154.34,26.45863231]
[1642079805055,2.84,154.48,154.34,26.45863231]
[1642079805255,18.5543,154.48,154.34,26.45863231]
[1642079805457,18.5543,154.48,154.38,9.7144]
[1642079805657,9.31,154.47,154.35,2.59]
[1642079805857,2.59,154.46,154.35,0.25]
[1642079806079,2.84,154.46,154.35,0.25]
[1642079806279,9.7157,154.45,154.35,0.25]
[1642079806482,6.0,154.46,154.36,2.59]
[1642079806679,6.0,154.48,154.36,2.84]
[1642079806879,6.0,154.48,154.37,1.18213231]
[1642079807082,6.0,154.48,154.37,1.43213231]
[1642079807279,8.59,154.49,154.37,1.43213231]
[1642079807482,9.7138,154.48,154.37,0.25]
[1642079807680,2.59,154.47,154.37,0.25]
[1642079808081,8.84,154.47,154.36,8.59]
[1642079808283,9.1,154.47,154.36,0.25]
[1642079808482,9.1,154.47,154.34,15.31]
[1642079808682,9.7162,154.45,154.34,15.31]
[1642079808882,2.59,154.44,154.34,15.31]
[1642079809086,0.25,154.44,154.34,25.027]
[1642079809284,6.25,154.44,154.34,25.027]
[1642079809484,6.0,154.44,154.34,25.027]
[1642079809684,2.59,154.45,154.34,26.20913231]
[1642079809886,9.2145,154.47,154.35,2.59]
[1642079810084,15.2145,154.47,154.38,9.7141]
[1642079810284,15.2145,154.47,154.35,8.59]
[1642079810483,15.2145,154.47,154.34,2.59]
[1642079810683,11.9,154.46,154.3,4.42897886]
[1642079810884,9.7202,154.38,154.3,1.83897886]
[1642079811086,9.7202,154.38,154.28,20.92975916]
[1642079811387,15.7202,154.38,154.29,1.83664331]
[1642079811587,15.9702,154.38,154.29,1.83664331]
[1642079812487,16.2302,154.38,154.28,16.86181932]
[1642079812687,16.2302,154.38,154.26,2.591]
[1642079812887,2.592,154.37,154.26,2.591]
[1642079813089,9.7237,154.33,154.26,2.591]
[1642079813487,9.9737,154.33,154.26,2.591]
[1642079813688,2.592,154.32,154.26,2.591]
[1642079814091,8.842,154.32,154.26,2.591]
[1642079814391,6.0,154.32,154.25,17.89401802]
[1642079814589,11.903,154.36,154.2,13.08413231]
[1642079814789,9.31,154.36,154.2,19.08413231]
[1642079815091,15.56,154.36,154.21,1.18213231]
[1642079815289,15.56,154.36,154.22,2.592]
[1642079815489,15.56,154.36,154.22,8.842]
[1642079815689,15.56,154.36,154.23,23.98651577]
[1642079815889,15.56,154.36,154.24,2.592]
[1642079816089,15.56,154.36,154.24,4.02413231]
[1642079816288,25.0315,154.36,154.25,9.7226]
[1642079816489,15.31,154.36,154.25,11.15473231]
[1642079816697,6.0,154.36,154.26,1.18213231]
[1642079816891,6.0,154.36,154.27,2.592]
[1642079817191,23.7589,154.39,154.29,9.72]
[1642079817192,6.0,154.38,154.29,9.72]
[1642079817391,6.0,154.38,154.3,22.52016279]
[1642079817593,29.7589,154.39,154.3,22.77016279]
[1642079817792,29.7589,154.39,154.3,0.25]
[1642079817993,30.0089,154.39,154.27,2.592]
[1642079818194,2.591,154.38,154.27,2.842]
[1642079818394,2.591,154.38,154.29,9.72]
[1642079818595,9.101,154.38,154.29,9.72]
[1642079818794,9.101,154.38,154.29,27.6542733]
[1642079819095,9.101,154.38,154.29,9.72]
[1642079819495,18.8214,154.38,154.29,9.72]
[1642079819696,8.841,154.38,154.29,9.72]
[1642079819894,8.591,154.38,154.29,9.72]
[1642079820095,8.591,154.38,154.3,23.9568461]
[1642079820296,2.591,154.41,154.32,9.7176]
[1642079820501,6.0,154.41,154.32,9.7176]
[1642079820694,482.24668845,154.42,154.32,9.7176]
[1642079820896,482.24668845,154.42,154.32,9.9676]
[1642079821100,476.24668845,154.42,154.32,9.9676]
[1642079821399,476.24668845,154.42,154.37,9.7128]
[1642079821602,476.24668845,154.42,154.39,19.9877269]
[1642079821799,2.591,154.44,154.4,8.65439993]
[1642079821999,2.591,154.44,154.41,2.59]
[1642079822197,2.591,154.44,154.4,0.25]
[1642079822599,2.591,154.44,154.4,9.9614]
[1642079822998,9.31,154.49,154.37,2.59]
[1642079823297,67.76,154.48,154.37,2.59]
[1642079823498,67.76,154.48,154.33,32.76246223]
[1642079823697,68.02,154.48,154.33,32.76246223]
[1642079823899,68.27,154.48,154.33,32.76246223]
[1642079824103,74.27,154.48,154.33,32.76246223]
[1642079824301,83.9841,154.48,154.36,9.7151]
[1642079824999,83.4841,154.48,154.36,9.7151]
[1642079825798,83.4841,154.48,154.34,9.7163]
[1642079825999,64.67,154.46,154.34,9.9663]
[1642079826200,9.7172,154.43,154.34,9.9663]
[1642079826399,9.7172,154.43,154.34,9.7163]
[1642079826599,9.9672,154.43,154.34,9.7163]
[1642079826803,15.9672,154.43,154.34,9.7163]
[1642079827102,80.6372,154.43,154.32,9.7176]
[1642079827301,2.591,154.42,154.32,9.7176]
[1642079827500,18.5584,154.42,154.32,9.7176]
[1642079828101,8.841,154.42,154.32,9.7176]
[1642079828300,6.25,154.42,154.32,9.7176]
[1642079828504,0.25,154.42,154.32,9.7176]
[1642079828702,6.25,154.42,154.32,9.7176]
[1642079828902,6.0,154.42,154.32,9.7176]
[1642079829102,6.25,154.42,154.32,9.7176]
[1642079829306,0.25,154.42,154.32,9.9676]
[1642079829502,6.25,154.42,154.32,9.9676]
[1642079830104,0.51,154.42,154.32,9.9676]
[1642079830304,6.51,154.42,154.32,9.7176]
[1642079830903,0.25,154.42,154.32,9.7176]
[1642079831104,6.25,154.42,154.32,9.7176]
[1642079831302,9.31,154.41,154.32,9.7176]
[1642079831501,83.321,154.41,154.32,9.7176]
[1642079831702,93.0392,154.41,154.32,9.7176]
[1642079831906,93.0392,154.41,154.31,9.7188]
[1642079832302,93.2992,154.41,154.31,9.7188]
[1642079834301,93.2992,154.41,154.3,9.7193]
[1642079834702,93.0392,154.41,154.3,9.7193]
[1642079835902,27.8692,154.41,154.3,9.7193]
[1642079836105,27.6192,154.41,154.3,9.7193]
[1642079836506,27.6192,154.41,154.3,9.9693]
[1642079836708,25.0282,154.41,154.3,9.9693]
[1642079837509,25.2782,154.41,154.3,9.9693]
[1642079838408,25.5382,154.41,154.3,9.9693]
[1642079838609,90.7082,154.41,154.3,9.9693]
[1642079840141,2.591,154.4,154.3,9.9693]
[1642079840342,9.7192,154.39,154.3,9.9693]
[1642079840540,9.9692,154.39,154.3,9.9693]
[1642079840740,15.9692,154.39,154.3,9.9693]
[1642079841140,6.25,154.39,154.3,9.9693]
[1642079841941,6.51,154.39,154.3,9.9693]
[1642079842140,6.0,154.39,154.3,9.9693]
[1642079842344,2.591,154.45,154.33,9.7175]
[1642079842539,6.0,154.45,154.34,26.04062699]
[1642079842741,248.4448,154.46,154.34,26.04062699]
[1642079842941,248.4448,154.46,154.34,26.29062699]
[1642079843340,2.59,154.45,154.34,26.29062699]
[1642079843540,8.84,154.45,154.34,26.29062699]
[1642079843941,8.84,154.45,154.34,2.84]
[1642079844241,18.5555,154.45,154.35,9.716]
[1642079844444,15.9655,154.45,154.35,9.716]
[1642079844641,15.9655,154.45,154.35,9.966]
[1642079845941,81.1355,154.45,154.35,9.966]
[1642079846343,81.1355,154.45,154.34,2.59]
[1642079846543,74.8877,154.42,154.34,0.25]
[1642079846745,84.1977,154.42,154.32,2.59]
[1642079846944,90.4477,154.42,154.28,2.591]
[1642079847145,2.591,154.41,154.28,2.591]
[1642079847347,2.591,154.41,154.29,9.7201]
[1642079847545,6.0,154.42,154.3,11.901]
[1642079847946,0.25,154.42,154.3,11.901]
[1642079848446,0.25,154.42,154.31,3.70188592]
[1642079848846,0.25,154.42,154.34,9.7168]
[1642079849047,18.8178,154.43,154.34,9.7168]
[1642079849247,9.7173,154.42,154.34,9.7168]
[1642079849449,15.7173,154.42,154.34,9.7168]
[1642079849647,15.9673,154.42,154.34,9.7168]
[1642079850247,15.9673,154.42,154.33,9.7176]
[1642079850447,25.2773,154.42,154.33,9.7176]
[1642079851252,25.2773,154.42,154.3,2.591]
[1642079851552,12.3088,154.41,154.32,9.7183]
[1642079851750,9.7178,154.41,154.32,9.7183]
[1642079851952,15.9678,154.41,154.32,9.7183]
[1642079852152,6.25,154.41,154.32,9.7183]
[1642079852355,6.25,154.41,154.32,9.9683]
[1642079853153,6.0,154.42,154.33,18.38897158]
[1642079853352,2.591,154.46,154.37,9.7143]
[1642079853552,438.35534625,154.51,154.37,25.2743]
[1642079853952,438.35534625,154.51,154.38,3.77158078]
[1642079854152,438.35534625,154.51,154.39,19.37350405]
[1642079854354,438.35534625,154.51,154.4,2.589]
[1642079854553,438.35534625,154.51,154.42,9.7117]
[1642079854753,444.35534625,154.51,154.42,9.7117]
[1642079854959,444.35534625,154.51,154.42,9.9617]
[1642079856160,6.0,154.51,154.42,9.9617]
[1642079856357,6.26,154.51,154.42,9.9617]
[1642079856560,6.26,154.51,154.42,15.9617]
[1642079856757,6.26,154.51,154.42,9.9617]
[1642079857159,0.26,154.51,154.42,9.9617]
[1642079857356,6.26,154.51,154.42,9.9617]
[1642079857860,2.589,154.5,154.4,2.589]
[1642079858057,74.009,154.5,154.4,2.839]
[1642079858485,8.839,154.5,154.4,2.839]
[1642079858657,9.714,154.48,154.4,2.839]
[1642079858858,8.839,154.5,154.4,2.589]
[1642079859660,8.589,154.5,154.4,2.589]
[1642079859858,8.839,154.5,154.4,2.589]
[1642079860058,6.25,154.5,154.4,0.25]
[1642079860458,6.25,154.5,154.38,2.839]
[1642079860661,6.25,154.5,154.38,8.839]
[1642079861162,0.25,154.5,154.4,9.713]
[1642079861360,6.25,154.5,154.4,12.302]
[1642079861660,6.25,154.5,154.4,12.552]
[1642079862065,6.25,154.5,154.4,9.963]
[1642079862460,6.25,154.5,154.4,15.963]
[1642079862660,6.25,154.5,154.4,9.963]
[1642079863061,6.25,154.5,154.4,9.713]
[1642079863460,6.51,154.5,154.4,9.713]
[1642079863860,6.25,154.5,154.4,9.713]
[1642079864260,0.25,154.5,154.4,9.713]
[1642079864464,8.589,154.51,154.4,9.713]
[1642079864465,8.839,154.51,154.4,9.963]
[1642079866663,8.839,154.51,154.4,15.963]
[1642079866964,6.25,154.51,154.4,15.963]
[1642079867166,0.51,154.51,154.4,15.963]
[1642079867464,6.0,154.51,154.4,15.963]
[1642079867665,15.7118,154.51,154.4,9.963]
[1642079867868,2.589,154.5,154.4,9.963]
[1642079868067,2.839,154.5,154.4,9.963]
[1642079868267,8.839,154.5,154.4,9.963]
[1642079868870,18.5519,154.5,154.4,9.963]
[1642079870273,65.17,154.49,154.4,9.963]
[1642079870473,71.42,154.49,154.4,9.963]
[1642079870670,81.1331,154.49,154.4,9.963]
[1642079871276,80.8831,154.49,154.4,9.963]
[1642079871576,15.7131,154.49,154.4,9.963]
[1642079871774,6.0,154.49,154.4,9.963]
[1642079872075,0.26,154.49,154.45,9.7099]
[1642079872476,0.26,154.51,154.45,9.9599]
[1642079872875,8.5237891,154.52,154.45,9.9599]
[1642079873079,2.5237891,154.52,154.45,9.9599]
[1642079873494,2.5237891,154.52,154.45,15.9599]
[1642079873695,2.5237891,154.52,154.46,1.18158078]
[1642079873895,2.5237891,154.52,154.49,9.7076]
[1642079874094,2.5237891,154.52,154.5,6.06439993]
[1642079874495,2.5237891,154.52,154.5,6.31439993]
[1642079874695,2.5237891,154.52,154.5,6.06439993]
[1642079875503,2.5237891,154.52,154.5,6.31439993]
[1642079876602,2.5237891,154.52,154.5,6.06439993]
[1642079877006,2.7737891,154.52,154.44,2.588]
[1642079877307,12.4849891,154.52,154.42,41.742]
[1642079877507,12.4849891,154.52,154.42,19.0218]
[1642079878011,18.7449891,154.52,154.42,19.0218]